bitfinex-derivatives/quotes_SOLF0:USTF0_20241216
["timestamp","ask_amount","ask_price","bid_price","bid_amount"]
[1734390847538,2.12,218.0,217.95,6.40611248]
[1734390848535,2.2932,217.96,217.95,6.40611248]
[1734390853540,2.12,218.0,217.92,2.2936]
[1734390853736,2.2934,217.95,217.94,6.40611248]
[1734390856535,2.12,218.0,217.91,2.2937]
[1734390856536,2.2934,217.94,217.91,2.2937]
[1734390856839,2.2934,217.94,217.93,6.40611248]
[1734390867347,2.12,218.0,217.93,6.40611248]
[1734390867551,2.12,218.02,217.97,6.40611248]
[1734390868455,2.293,217.98,217.97,6.40611248]
[1734390871750,2.2932,217.97,217.95,6.40611248]
[1734390871950,6.40611248,218.02,217.91,3.1118]
[1734390872151,2.12,218.03,217.93,6.40611248]
[1734390872152,6.40611248,218.0,217.93,6.40611248]
[1734390872552,2.12,217.99,217.93,6.40611248]
[1734390872749,2.12,217.99,217.9,5.53954939]
[1734390872954,6.40611248,217.96,217.86,2.12]
[1734390873252,2.2939,217.89,217.83,3.154]
[1734390873456,2.2939,217.89,217.87,6.40611248]
[1734390873853,2.2939,217.89,217.87,11.79463408]
[1734390874051,2.2942,217.87,217.83,3.154]
[1734390874356,2.2942,217.87,217.85,6.40611248]
[1734390876057,2.2942,217.86,217.82,2.2946]
[1734390876257,2.2942,217.86,217.85,6.40611248]
[1734390877057,2.2941,217.87,217.85,6.40611248]
[1734390877258,2.2941,217.87,217.86,6.40611248]
[1734390879758,2.12,217.93,217.85,5.61061363]
[1734390879955,2.2942,217.86,217.85,12.01672611]
[1734390880360,2.2942,217.86,217.85,6.40611248]
[1734390883962,2.2941,217.88,217.85,6.40611248]
[1734390884159,2.2941,217.88,217.87,6.40611248]
[1734390885359,2.12,217.92,217.87,6.40611248]
[1734390886656,6.40611248,217.94,217.87,6.40611248]
[1734390886856,2.12,217.93,217.87,6.40611248]
[1734390887465,2.2939,217.89,217.87,6.40611248]
[1734390888758,2.12,217.93,217.87,6.40611248]
[1734390888959,2.294,217.88,217.87,6.40611248]
[1734390891058,2.12,217.93,217.85,6.40611248]
[1734390891059,6.40611248,217.92,217.85,6.40611248]
[1734390891666,2.2942,217.87,217.85,6.40611248]
[1734390895764,2.294,217.88,217.85,6.40611248]
[1734390895965,2.294,217.88,217.87,6.40611248]
[1734390900368,2.2943,217.86,217.82,2.2946]
[1734390900574,6.40611248,217.92,217.83,6.40611248]
[1734390901066,2.2944,217.85,217.83,6.40611248]
[1734390901568,6.40611248,217.92,217.83,6.40611248]
[1734390901769,2.2942,217.86,217.85,6.40611248]
[1734390904171,2.2941,217.88,217.85,8.70041248]
[1734390904373,2.2941,217.88,217.87,6.40611248]
[1734390904569,2.12,217.93,217.87,6.40611248]
[1734390904773,49.12488155,217.98,217.91,6.40611248]
[1734390904971,49.12488155,217.98,217.94,6.40611248]
[1734390905570,51.41788155,217.98,217.96,6.40611248]
[1734390905771,2.293,217.98,217.96,6.40611248]
[1734390905968,2.2928,218.0,217.96,6.40611248]
[1734390906167,2.2928,218.0,217.98,6.40611248]
[1734390906773,2.12,218.03,217.98,6.40611248]
[1734390906972,2.2929,217.99,217.98,6.40611248]
[1734390907377,2.2927,218.01,217.98,6.40611248]
[1734390909476,8.52611248,218.05,217.98,8.69901248]
[1734390909676,6.40611248,218.05,218.0,6.40611248]
[1734390909875,2.12,218.06,218.0,6.40611248]
[1734390909876,2.2924,218.04,218.0,6.40611248]
[1734390910875,1.6152,218.11,218.02,6.40611248]
[1734390911087,2.2919,218.09,218.05,6.40611248]
[1734390911578,8.52611248,218.11,218.05,6.40611248]
[1734390911879,6.40611248,218.09,218.01,2.12]
[1734390912178,6.40611248,218.09,218.02,6.40611248]
[1734390913378,2.2921,218.07,218.04,6.40611248]
[1734390913975,5.46462285,218.14,218.04,6.40611248]
[1734390914176,2.2919,218.08,218.04,6.40611248]
[1734390915486,2.12,218.13,218.06,6.40611248]
[1734390915777,6.40611248,218.13,218.06,6.40611248]
[1734390915973,2.2918,218.09,218.06,6.40611248]
[1734390919186,2.2916,218.11,218.06,8.69821248]
[1734390920191,2.2916,218.11,218.08,6.40611248]
[1734390920390,2.12,218.15,218.1,6.40611248]
[1734390920683,6.40611248,218.17,218.1,6.40611248]
[1734390920888,2.12,218.16,218.1,6.40611248]
[1734390921597,2.2914,218.13,218.1,6.40611248]
[1734390922987,2.2915,218.12,218.1,6.40611248]
[1734390924886,4.6638,218.22,218.1,6.40611248]
[1734390925092,2.2912,218.15,218.12,6.40611248]
[1734390925288,6.40611248,218.18,218.12,6.40611248]
[1734390925592,2.2913,218.14,218.12,6.40611248]
[1734390925987,2.2914,218.13,218.12,6.40611248]
[1734390926991,2.12,218.21,218.12,6.40611248]
[1734390927188,6.40611248,218.2,218.05,2.12]
[1734390927390,6.40611248,218.2,218.14,6.40611248]
[1734390927591,2.2911,218.17,218.14,6.40611248]
[1734390930193,2.2911,218.16,218.14,6.40611248]
[1734390930390,6.40611248,218.2,218.14,6.40611248]
[1734390931093,6.40611248,218.2,218.12,6.40611248]
[1734390931597,2.2912,218.15,218.12,6.40611248]
[1734390931989,2.12,218.19,218.14,6.40611248]
[1734390932189,2.2911,218.16,218.14,6.40611248]
[1734390933195,2.2912,218.15,218.14,6.40611248]
[1734390933893,2.12,218.19,218.14,6.40611248]
[1734390934097,2.2911,218.16,218.14,6.40611248]
[1734390936401,2.2909,218.18,218.14,8.69741248]
[1734390936586,2.2909,218.18,218.16,6.40611248]
[1734390936988,3.1011,218.27,218.16,6.40611248]
[1734390937197,6.40611248,218.24,218.18,6.40611248]
[1734390937593,2.2906,218.21,218.18,6.40611248]
[1734390938299,2.2904,218.23,218.19,2.2907]
[1734390939102,2.12,218.25,218.18,6.40611248]
[1734390939293,2.2905,218.22,218.18,6.40611248]
[1734390940396,2.2906,218.21,218.18,6.40611248]
[1734390940594,49.05632992,218.29,218.18,6.40611248]
[1734390940801,6.40611248,218.27,218.2,6.40611248]
[1734390942399,2.2904,218.23,218.2,6.40611248]
[1734390942797,2.12,218.26,218.2,6.40611248]
[1734390943593,2.2904,218.23,218.2,6.40611248]
[1734390945101,4.4102,218.25,218.22,6.40611248]
[1734390945803,2.2902,218.25,218.22,6.40611248]
[1734390947301,2.2903,218.24,218.22,6.40611248]
[1734390947493,2.12,218.27,218.22,6.40611248]
[1734390948300,2.2902,218.25,218.22,8.69651248]
[1734390948493,2.12,218.27,218.24,6.40611248]
[1734390948696,49.05632992,218.29,218.24,6.40611248]
[1734390949407,2.29,218.27,218.24,6.40611248]
[1734390949800,49.05632992,218.29,218.24,6.40611248]
[1734390950803,2.29,218.27,218.24,6.40611248]
[1734390951805,55.4624424,218.29,218.22,6.40611248]
[1734390952596,2.2902,218.25,218.22,6.40611248]
[1734390956115,2.2903,218.23,218.19,2.2907]
[1734390956308,6.40611248,218.25,218.18,6.40611248]
[1734390956908,6.40611248,218.25,218.19,6.40611248]
[1734390958615,2.2906,218.21,218.19,6.40611248]
[1734390959806,2.2907,218.2,218.19,6.40611248]
[1734390960616,8.52611248,218.21,218.12,5.49016788]
[1734390960815,6.40611248,218.19,218.1,2.2916]
[1734390961013,2.292,218.08,218.05,6.40611248]
[1734390961314,2.292,218.08,217.98,4.5659]
[1734390961315,2.292,218.08,218.04,5.52177462]
[1734390961610,8.52611248,218.1,217.98,4.5659]
[1734390961916,8.52611248,218.1,218.03,6.40611248]
[1734390962611,2.2921,218.06,218.03,6.40611248]
[1734390962806,3.2003,218.18,218.05,6.40611248]
[1734390962807,6.40611248,218.12,218.05,6.40611248]
[1734390963012,2.12,218.11,218.05,6.40611248]
[1734390964015,6.40611248,218.1,218.0,5.50417183]
[1734390964220,6.40611248,218.08,218.01,6.40611248]
[1734390964517,2.2921,218.06,218.03,6.40611248]
[1734390964816,2.12,218.05,218.03,6.40611248]
[1734390965217,4.4121,218.06,218.03,6.40611248]
[1734390967418,2.12,218.06,218.03,6.40611248]
[1734390968221,2.2923,218.04,218.03,6.40611248]
[1734390969915,2.12,218.06,218.0,5.50417183]
[1734390970119,2.2925,218.03,218.02,6.40611248]
[1734390971017,2.2925,218.03,218.01,6.40611248]
[1734390971521,2.12,218.06,218.01,6.40611248]
[1734390971718,2.2923,218.05,218.01,6.40611248]
[1734390971920,2.12,218.06,218.01,6.40611248]
[1734390972722,2.2923,218.05,218.01,6.40611248]
[1734390972922,2.12,218.06,218.01,6.40611248]
[1734390973321,2.2922,218.05,218.03,6.40611248]
[1734390973622,5.6337719,218.15,218.03,6.40611248]
[1734390973820,2.2916,218.12,218.07,6.40611248]
[1734390974020,2.12,218.11,218.0,2.12]
[1734390974226,2.12,218.12,218.09,6.40611248]
[1734390974525,1.5761,218.17,218.07,6.40611248]
[1734390974526,2.12,218.11,218.07,6.40611248]
[1734390975120,2.12,218.11,218.0,2.12]
[1734390975328,2.12,218.11,218.06,6.40611248]
[1734390977329,6.40611248,218.14,218.08,6.40611248]
[1734390977525,2.12,218.13,218.08,6.40611248]
[1734390978225,2.2917,218.11,218.08,6.40611248]
[1734390978428,8.52611248,218.13,218.06,6.40611248]
[1734390978623,2.2916,218.11,218.06,6.40611248]
[1734390979020,5.3960237,218.2,218.1,6.40611248]
[1734390979223,2.12,218.19,218.12,6.40611248]
[1734390979423,6.40611248,218.18,218.12,6.40611248]
[1734390979823,2.2913,218.15,218.12,6.40611248]
[1734390980021,2.2913,218.15,218.07,4.7253]
[1734390980327,2.2913,218.15,218.11,6.40611248]
[1734390980825,6.40611248,218.18,218.11,6.40611248]
[1734390980826,2.2911,218.16,218.11,6.40611248]
[1734390981426,2.2911,218.16,218.13,6.40611248]
[1734390982625,2.2909,218.18,218.13,6.40611248]
[1734390982826,4.4109,218.18,218.13,6.40611248]
[1734390983031,2.12,218.18,218.13,6.40611248]
[1734390983221,2.2912,218.15,218.11,6.40611248]
[1734390983427,8.52611248,218.18,218.11,6.40611248]
[1734390984825,2.2913,218.15,218.11,6.40611248]
[1734390985134,8.52611248,218.18,218.11,6.40611248]
[1734390986028,2.2911,218.16,218.11,6.40611248]
[1734390986229,8.52611248,218.18,218.11,6.40611248]
[1734390986530,8.52611248,218.18,218.11,11.89389308]
[1734390986731,2.2913,218.15,218.11,11.89389308]
[1734390987627,2.2913,218.14,218.11,11.89389308]
[1734390988828,8.52611248,218.18,218.07,4.7253]
[1734390989028,2.2915,218.12,218.08,8.69801248]
[1734390989224,8.52611248,218.14,218.08,6.40611248]
[1734390989429,6.40611248,218.12,217.9,4.5875]
[1734390989633,2.292,218.07,218.04,6.40611248]
[1734390990335,2.12,218.09,218.04,6.40611248]
[1734390990532,6.40611248,218.08,218.01,2.2926]
[1734390990732,6.40611248,218.08,218.01,5.55987104]
[1734390991031,2.12,218.09,217.99,1.5199]
[1734390991032,6.40611248,218.04,217.99,1.5199]
[1734390991231,8.52611248,218.04,217.99,1.5199]
[1734390991634,2.2926,218.02,217.99,1.5199]
[1734390992027,2.2926,218.02,217.99,7.92601248]
[1734390995434,2.2925,218.03,217.99,10.21891248]
[1734390995629,2.12,218.04,218.01,6.40611248]
[1734390995833,2.12,218.05,218.01,6.40611248]
[1734390996535,2.2924,218.04,218.01,6.40611248]
[1734390997337,4.4123,218.05,218.01,6.40611248]
[1734390998527,2.12,218.05,218.01,6.40611248]
[1734390998728,2.2921,218.07,218.03,2.2924]
[1734390998933,4.4121,218.07,218.03,8.69851248]
[1734391000236,4.4121,218.07,218.03,6.40611248]
[1734391001939,2.2921,218.07,218.03,6.40611248]
[1734391002236,2.12,218.08,218.03,6.40611248]
[1734391003041,4.4119,218.08,218.04,2.2922]
[1734391005835,2.12,218.08,217.99,3.0944]
[1734391006041,2.2922,218.05,218.01,2.2926]
[1734391007939,2.292,218.07,217.99,3.0944]
[1734391008138,2.292,218.07,218.03,6.40611248]
[1734391008747,2.292,218.07,218.03,8.69851248]
[1734391009145,2.292,218.07,218.03,2.2924]
[1734391009545,2.2924,218.04,218.0,2.2927]
[1734391009738,8.52611248,218.08,218.0,2.2927]
[1734391010245,2.2923,218.05,218.01,2.2926]
[1734391013244,2.2923,218.05,218.01,6.40611248]
[1734391013447,2.2921,218.07,218.03,2.2924]
[1734391014848,2.2921,218.07,218.04,2.2923]
[1734391015150,2.2919,218.08,218.03,6.40611248]
[1734391015949,2.2919,218.08,218.04,2.2923]
[1734391020249,8.52611248,218.09,218.03,6.40611248]
[1734391020451,8.52611248,218.09,218.03,8.69851248]
[1734391020452,2.2921,218.07,218.03,8.69851248]
[1734391020653,8.52611248,218.09,218.03,8.69851248]
[1734391020854,6.40611248,218.07,217.99,9.50051248]
[1734391021551,2.2924,218.04,218.0,2.2928]
[1734391022449,2.2926,218.02,217.99,5.3872]
[1734391022649,2.2926,218.02,217.99,1.5199]
[1734391023260,2.2926,218.02,217.99,7.92601248]
[1734391023952,2.2925,218.03,218.0,2.2928]
[1734391024858,2.2925,218.03,217.99,7.92601248]
[1734391025050,2.2925,218.03,217.99,10.21891248]
[1734391028058,2.2922,218.06,218.02,2.2925]
[1734391028359,2.12,218.15,218.04,6.40611248]
[1734391028556,2.12,218.15,218.09,6.40611248]
[1734391028949,6.40611248,218.14,218.07,8.69801248]
[1734391029155,6.40611248,218.12,218.05,6.40611248]
[1734391029350,2.12,218.15,218.05,6.40611248]
[1734391029556,2.2918,218.1,218.04,2.2923]
[1734391029763,2.12,218.1,218.04,2.2923]
[1734391031463,2.2919,218.09,218.04,2.2923]
[1734391031857,2.12,218.1,218.04,2.2923]
[1734391032061,6.40611248,218.09,218.04,2.2923]
[1734391032266,6.40611248,218.09,218.03,6.40611248]
[1734391032454,2.2921,218.07,218.01,6.40611248]
[1734391033163,2.2921,218.07,218.02,2.2925]
[1734391034363,2.2921,218.06,218.02,2.2925]
[1734391034666,6.40611248,218.07,218.01,8.69881248]
[1734391034865,2.12,218.06,218.01,8.69881248]
[1734391035466,2.2923,218.05,218.01,8.69881248]
[1734391041869,4.4122,218.06,218.02,2.2926]
[1734391042769,2.12,218.06,218.03,2.2925]
[1734391043172,6.40611248,218.08,218.01,6.40611248]
[1734391043472,2.2922,218.06,218.02,2.2925]
[1734391044963,6.40611248,218.06,217.99,3.0214]
[1734391046572,2.2925,218.04,218.0,2.2928]
[1734391047263,2.2925,218.03,217.99,3.0214]
[1734391047468,6.40611248,218.02,217.86,4.5884]
[1734391047676,6.40611248,218.0,217.88,1.4711]
[1734391047876,4.413,217.99,217.95,2.2932]
[1734391048071,6.40611248,218.0,217.95,2.2932]
[1734391048277,2.12,217.99,217.95,2.2932]
[1734391048673,2.12,217.99,217.95,7.90656825]
[1734391049578,2.2931,217.98,217.95,7.90656825]
[1734391049777,2.12,217.99,217.95,7.90656825]
[1734391050169,4.4129,217.99,217.95,7.90656825]
[1734391051373,4.5837,218.09,217.96,6.40611248]
[1734391051578,6.40611248,218.04,217.98,6.40611248]
[1734391051877,2.12,218.03,217.98,6.40611248]
[1734391052079,2.12,218.04,217.99,2.2929]
[1734391053174,2.2926,218.02,217.98,8.69911248]
[1734391054477,8.52611248,218.04,217.96,3.2052]
[1734391054671,6.40611248,218.02,217.96,9.61131248]
[1734391056382,2.2929,218.0,217.96,9.61131248]
[1734391057079,0.16356,218.1,217.99,6.40611248]
[1734391057272,2.12,218.09,218.01,6.40611248]
[1734391057475,8.52611248,218.09,218.01,6.40611248]
[1734391057674,2.12,218.09,218.01,8.69871248]
[1734391057882,6.40611248,218.07,218.01,8.69871248]
[1734391058181,6.40611248,218.07,217.99,8.69901248]
[1734391058182,2.2923,218.05,217.99,8.69901248]
[1734391058978,2.12,218.09,217.99,6.40611248]
[1734391059173,8.69821248,218.07,218.01,2.2926]
[1734391059582,8.69821248,218.07,218.02,2.2926]
[1734391060082,2.2921,218.07,218.02,2.2926]
[1734391061283,2.2922,218.06,218.02,2.2926]
[1734391062583,2.2922,218.06,218.01,8.69881248]
[1734391064086,2.2923,218.05,218.01,8.69881248]
[1734391064786,2.2923,218.05,218.01,6.40611248]
[1734391064982,2.2923,218.05,217.99,8.69891248]
[1734391065177,6.40611248,218.07,217.96,4.7467]
[1734391065377,6.40611248,218.03,217.96,4.7467]
[1734391065580,6.40611248,218.03,217.97,6.40611248]
[1734391066087,6.40611248,218.01,217.93,6.40611248]
[1734391066583,2.12,218.0,217.93,6.40611248]
[1734391067487,2.2931,217.97,217.93,8.69961248]
[1734391067688,2.2931,217.97,217.9,2.12]
[1734391067689,6.40611248,217.99,217.9,2.12]
[1734391067883,6.40611248,217.99,217.92,6.40611248]
[1734391068285,2.2932,217.96,217.94,5.52684373]
[1734391070392,6.40611248,217.99,217.92,6.40611248]
[1734391070593,2.2934,217.95,217.91,2.2937]
[1734391071990,2.2934,217.95,217.93,5.52049002]
[1734391080700,2.2935,217.94,217.9,8.69991248]
[1734391081798,2.2935,217.93,217.9,8.69991248]
[1734391084304,2.2935,217.93,217.91,5.4055948]
[1734391084502,2.2935,217.93,217.91,7.6992948]
[1734391086000,2.2938,217.91,217.88,8.70011248]
[1734391086196,6.40611248,217.93,217.86,6.40611248]
[1734391086401,8.58611248,217.93,217.86,6.40611248]
[1734391087105,6.40611248,217.91,217.85,9.47831248]
[1734391087302,2.18,217.93,217.75,3.0979]
[1734391087303,6.40611248,217.89,217.75,3.0979]
[1734391087603,2.2945,217.84,217.81,6.40611248]
[1734391089403,2.2945,217.84,217.81,11.84364996]
[1734391089610,2.2945,217.84,217.81,5.43753748]
[1734391089804,8.58611248,217.87,217.76,2.18]
[1734391089805,6.40611248,217.85,217.76,2.18]
[1734391090006,6.40611248,217.85,217.78,6.40611248]
[1734391090412,6.40611248,217.83,217.76,2.18]
[1734391090611,6.40611248,217.79,217.74,5.6110935]
[1734391090811,8.58611248,217.79,217.74,5.6110935]
[1734391091009,8.58611248,217.79,217.74,12.01720598]
[1734391091215,2.2951,217.79,217.74,12.01720598]
[1734391091709,4.4747,217.82,217.78,6.40611248]
[1734391091905,2.2947,217.82,217.78,6.40611248]
[1734391092414,2.2948,217.81,217.77,2.2952]
[1734391093603,2.2947,217.82,217.77,2.2952]
[1734391095015,8.70081248,217.82,217.77,2.2952]
[1734391095813,2.2947,217.82,217.77,2.2952]
[1734391096417,2.2947,217.82,217.77,8.70131248]
[1734391097222,2.2948,217.81,217.77,8.70131248]
[1734391097920,2.295,217.79,217.74,12.01720598]
[1734391098822,2.295,217.79,217.74,14.31270598]
[1734391099023,2.2951,217.78,217.74,14.31270598]
[1734391099917,6.40611248,217.79,217.74,12.01720598]
[1734391099918,2.2953,217.76,217.74,12.01720598]
[1734391100119,2.2953,217.76,217.74,5.6110935]
[1734391100423,6.40611248,217.79,217.74,5.6110935]
[1734391100624,2.2952,217.77,217.74,5.6110935]
[1734391101722,2.2953,217.76,217.74,5.6110935]
[1734391102225,2.2953,217.76,217.71,6.40611248]
[1734391102226,2.2953,217.76,217.71,8.70181248]
[1734391102620,2.2953,217.76,217.71,6.40611248]
[1734391103324,2.2953,217.76,217.73,5.52361212]
[1734391106631,2.2952,217.77,217.73,14.2252246]
[1734391108233,4.588,217.89,217.76,2.2952]
[1734391108234,2.2949,217.8,217.76,2.2952]
[1734391108435,2.18,217.81,217.76,2.2952]
[1734391108633,8.58611248,217.81,217.75,6.40611248]
[1734391108828,2.2952,217.77,217.75,6.40611248]
[1734391109033,2.2952,217.77,217.73,14.2252246]
[1734391109730,2.2952,217.77,217.74,2.2955]
[1734391110329,2.2952,217.77,217.73,14.2253246]
[1734391110834,2.2952,217.77,217.73,11.9297246]
[1734391111033,2.2952,217.77,217.74,2.2955]
[1734391111938,6.40611248,217.77,217.7,7.98961248]
[1734391112828,2.2954,217.75,217.71,2.2957]
[1734391113235,6.40611248,217.77,217.71,2.2957]
[1734391113733,2.2956,217.74,217.7,8.70201248]
[1734391113935,2.16,217.83,217.72,6.40611248]
[1734391114138,1.4733,217.92,217.75,6.40611248]
[1734391114139,8.56611248,217.82,217.75,6.40611248]
[1734391114338,2.2951,217.78,217.75,8.70141248]
[1734391114536,2.2951,217.78,217.75,6.40611248]
[1734391115644,2.2951,217.78,217.75,8.70151248]
[1734391117536,2.2949,217.8,217.76,2.2952]
[1734391117941,2.16,217.82,217.77,6.40611248]
[1734391118238,2.2947,217.82,217.78,2.295]
[1734391118834,2.2947,217.82,217.77,6.40611248]
[1734391119039,2.2947,217.82,217.79,2.295]
[1734391120135,2.2947,217.82,217.77,6.40611248]
[1734391120333,2.2947,217.82,217.78,2.295]
[1734391123343,8.70081248,217.82,217.78,2.295]
[1734391123845,2.2948,217.81,217.78,2.295]
[1734391125738,6.40611248,217.82,217.77,2.2952]
[1734391125739,8.70081248,217.82,217.77,2.2952]
[1734391125941,6.40611248,217.82,217.72,2.16]
[1734391126142,6.40611248,217.82,217.76,6.40611248]
[1734391127544,2.2948,217.81,217.77,2.2951]
[1734391128549,6.40611248,217.82,217.72,2.16]
[1734391128749,2.2951,217.78,217.74,6.40611248]
[1734391129149,2.2951,217.78,217.74,8.70151248]
[1734391130251,2.2953,217.77,217.74,8.70151248]
[1734391131247,6.40611248,217.78,217.71,5.52747192]
[1734391131552,6.40611248,217.78,217.71,11.9335844]
[1734391132050,6.40611248,217.78,217.72,2.2957]
[1734391133147,2.2955,217.75,217.72,2.2957]
[1734391133353,6.40611248,217.78,217.71,11.9335844]
[1734391133654,2.2955,217.75,217.71,11.9335844]
[1734391134350,6.40611248,217.75,217.68,1.6011]
[1734391134556,6.40611248,217.73,217.68,1.6011]
[1734391134852,2.296,217.7,217.68,1.6011]
[1734391136049,2.2958,217.72,217.68,1.6011]
[1734391136255,6.40611248,217.71,217.64,6.40611248]
[1734391136550,4.5894,217.82,217.62,6.40611248]
[1734391136551,6.40611248,217.69,217.62,6.40611248]
[1734391136952,2.2962,217.67,217.63,2.2966]
[1734391137762,2.2962,217.67,217.65,5.54961017]
[1734391138052,2.2964,217.66,217.62,2.2967]
[1734391139453,2.2962,217.68,217.63,2.2966]
[1734391139658,6.40611248,217.69,217.63,8.70271248]
[1734391140656,2.2962,217.67,217.63,8.70271248]
[1734391141055,2.2962,217.67,217.64,5.47266525]
[1734391143153,2.14,217.73,217.65,6.40611248]
[1734391143347,6.40611248,217.72,217.65,6.40611248]
[1734391144352,2.296,217.7,217.65,8.70241248]
[1734391144860,2.296,217.7,217.65,6.40611248]
[1734391145153,2.296,217.7,217.65,8.70251248]
[1734391146660,8.70211248,217.7,217.65,2.2964]
[1734391147553,2.2958,217.71,217.67,2.2962]
[1734391147759,6.40611248,217.73,217.67,2.2962]
[1734391147958,6.40611248,217.73,217.65,12.05496672]
[1734391148357,2.2959,217.71,217.66,2.2962]
[1734391149555,2.2959,217.71,217.67,2.2962]
[1734391150662,2.2959,217.7,217.66,2.2963]
[1734391151658,2.2958,217.72,217.67,2.2962]
[1734391152858,6.40611248,217.73,217.67,2.2962]
[1734391153058,2.2959,217.71,217.67,2.2962]
[1734391153858,6.40611248,217.71,217.65,5.64885424]
[1734391154859,6.40611248,217.67,217.62,1.4654]
[1734391155064,2.2964,217.66,217.62,3.7621]
[1734391155867,2.2964,217.66,217.64,5.50413976]
[1734391159063,2.2965,217.64,217.6,2.2969]
[1734391159463,6.40611248,217.65,217.6,2.2969]
[1734391159763,2.2968,217.62,217.61,5.61158307]
[1734391160562,2.2969,217.61,217.58,2.2971]
[1734391160767,6.40611248,217.63,217.57,2.2973]
[1734391160967,2.14,217.65,217.54,4.6729]
[1734391160968,6.40611248,217.59,217.54,4.6729]
[1734391161169,2.2974,217.56,217.54,1.574]
[1734391161364,6.40611248,217.59,217.55,5.43672099]
[1734391161566,6.40611248,217.57,217.51,6.40611248]
[1734391162262,2.2975,217.55,217.52,2.2978]
[1734391163465,2.2974,217.56,217.52,2.2978]
[1734391164669,2.2975,217.55,217.52,2.2978]
[1734391165362,2.2975,217.55,217.54,5.64343708]
[1734391165565,2.2975,217.55,217.51,6.40611248]
[1734391165762,2.2975,217.55,217.51,8.70401248]
[1734391168367,6.40611248,217.53,217.49,5.45858286]
[1734391168772,2.298,217.5,217.45,2.2985]
[1734391168965,6.40611248,217.49,217.43,6.40611248]
[1734391169370,2.2984,217.47,217.43,8.70481248]
[1734391170871,2.2986,217.45,217.44,5.54668997]
[1734391172268,2.2988,217.43,217.41,4.6625]
[1734391172471,6.40611248,217.47,217.39,6.40611248]
[1734391173175,2.2989,217.42,217.39,6.40611248]
[1734391173367,6.40611248,217.47,217.39,6.40611248]
[1734391173368,2.16,217.44,217.4,5.52257301]
[1734391173973,2.2989,217.42,217.4,5.52257301]
[1734391176878,2.16,217.46,217.4,5.52257301]
[1734391177077,8.56611248,217.47,217.4,5.52257301]
[1734391177576,2.2986,217.45,217.4,5.52257301]
[1734391177777,8.56611248,217.47,217.41,6.40611248]
[1734391178279,10.86451248,217.47,217.42,2.2989]
[1734391178681,8.56611248,217.47,217.42,2.2989]
[1734391179281,2.2984,217.46,217.42,2.2989]
[1734391179576,8.56611248,217.47,217.43,2.2987]
[1734391179771,10.86451248,217.47,217.43,2.2987]
[1734391179972,8.56611248,217.47,217.43,2.2987]
[1734391180576,6.40611248,217.47,217.43,2.2987]
[1734391180774,2.2981,217.5,217.46,2.2984]
[1734391180972,6.40611248,217.51,217.45,6.40611248]
[1734391181175,6.40611248,217.51,217.43,6.40611248]
[1734391181380,6.40611248,217.51,217.45,2.2985]
[1734391181381,2.2981,217.49,217.45,2.2985]
[1734391185489,2.2981,217.49,217.46,2.2984]
[1734391187692,8.70411248,217.51,217.45,6.40611248]
[1734391188194,8.70411248,217.51,217.47,2.2983]
[1734391188782,2.16,217.53,217.43,2.2987]
[1734391188783,2.2985,217.46,217.43,2.2987]
[1734391192989,2.2986,217.45,217.42,3.7991]
[1734391193189,2.2986,217.45,217.42,1.5003]
[1734391193383,2.2985,217.46,217.41,8.70501248]
[1734391193583,6.40611248,217.47,217.41,8.70501248]
[1734391193984,2.2986,217.45,217.41,8.70501248]
[1734391195391,6.40611248,217.45,217.4,5.52257301]
[1734391195588,2.2989,217.42,217.4,5.52257301]
[1734391196082,6.40611248,217.45,217.4,5.52257301]
[1734391196283,2.2988,217.43,217.4,5.52257301]
[1734391197991,6.40611248,217.43,217.4,5.52257301]
[1734391198695,2.299,217.41,217.4,5.52257301]
[1734391199297,2.2991,217.4,217.36,0.2037]
[1734391199493,2.2991,217.4,217.36,6.60981248]
[1734391199895,2.2991,217.4,217.38,5.44749566]
[1734391200890,6.40611248,217.43,217.38,5.44749566]
[1734391201097,6.40611248,217.45,217.38,11.85360814]
[1734391201396,6.40611248,217.41,217.38,5.44749566]
[1734391202096,6.40611248,217.43,217.38,5.44749566]
[1734391202498,2.299,217.41,217.38,5.44749566]